Cogmind - Beta 11 @@@ ROGUE MODE // 2022.03.30 @ 18:26:37 Player: Catfish Result: Destroyed by D-53 Grenadier with Mini Grenade Launcher Performance ------------- Evolutions (1) 500 Regions Visited (4) 800 Robots Destroyed (44) 220 Value Destroyed (1064) 1064 Prototype IDs (3) 60 Alien Tech Used (0) 0 Bonus (6) 6 TOTAL SCORE: 2650 Bonus ------- High Alert Combat Kills 6 Cogmind --------- Core Integrity 0/400 Matter 300/300 Energy 99/100 System Corruption 0% Temperature Cool (0) Movement Rolling (135) Ox3 Location -9/Mines Parts ------- > --- POWER (1) -------- (None) > --- PROPULSION (3) --- Armored Wheel > --- UTILITY (3) ------ High-capacity Storage Unit Structural Scanner Transport Network Coupler > --- WEAPON (2) ------- (None) > --- INVENTORY (20) --- Nuclear Core Flight Unit Flight Unit Flight Unit Flight Unit Flight Unit Flight Unit Flight Unit Weight Redist. System Signal Interpreter Terrain Scan Processor Melee Analysis Suite Melee Analysis Suite Melee Analysis Suite Melee Analysis Suite Light Armor Plating Small Laser Small Laser Grenade Launcher Rocket Launcher Peak State ------------ > --- POWER ------------ Heavy Ion Engine > --- PROPULSION ------- Armored Wheel Armored Wheel Armored Wheel > --- UTILITY ---------- High-capacity Storage Unit Structural Scanner Transport Network Coupler > --- WEAPON ----------- Beam Rifle Particle Gun > --- INVENTORY -------- Nuclear Core Flight Unit Flight Unit Flight Unit Flight Unit Flight Unit Flight Unit Flight Unit Weight Redist. System Signal Interpreter Terrain Scan Processor Melee Analysis Suite Melee Analysis Suite Melee Analysis Suite Melee Analysis Suite Light Armor Plating Grenade Launcher Rocket Launcher [Rating: 19] Favorites ----------- Power Ion Engine Engine Ion Engine Power Core Nuclear Core Propulsion Armored Wheel Leg Aluminum Leg Wheel Armored Wheel Utility High-capacity Storage Unit Device Structural Scanner Storage High-capacity Storage Unit Processor Transport Network Coupler Protection Light Armor Plating Weapon Light Assault Rifle Energy Gun Particle Gun Ballistic Gun Light Assault Rifle Build | -11 -10 -10 -9 -9 ------- Run | Scr Mat Min Mat Min Slots Evolved 2 | . . . 2 . Power . | . . . . . Propulsion 1 | . . . 1 . Utility 1 | . . . 1 . Weapon . | . . . . . Parts Attached 43 | 6 3 3 25 6 Power 7 | 1 . 1 5 . Engine 5 | 1 . 1 3 . Core 2 | . . . 2 . Reactor . | . . . . . Propulsion 12 | 2 . . 7 3 Treads . | . . . . . Leg 2 | . . . . 2 Wheel 10 | 2 . . 7 1 Hover . | . . . . . Flight . | . . . . . Utility 7 | . 2 . 5 . Device 4 | . . . 4 . Storage 1 | . 1 . . . Processor 1 | . . . 1 . Hackware . | . . . . . Protection 1 | . 1 . . . Artifact . | . . . . . Weapon 17 | 3 1 2 8 3 Energy Gun 7 | 1 . . 3 3 Energy Cannon . | . . . . . Ballistic Gun 10 | 2 1 2 5 . Ballistic Cannon . | . . . . . Launcher . | . . . . . Special Weapon . | . . . . . Impact Weapon . | . . . . . Slashing Weapon . | . . . . . Piercing Weapon . | . . . . . Special Melee Weapon . | . . . . . Unidentified Prototypes 3 | . . . 3 . Parts Lost 15 | . . . 8 7 Power 4 | . . . 3 1 Propulsion 4 | . . . 1 3 Utility 1 | . . . 1 . Weapon 6 | . . . 3 3 Highest Loss Streak 5 | . . . 3 5 To Critical Strikes . | . . . . . Average Slot Usage (%) 95 | . 93 100 92 96 Engine 10 | . 14 14 7 10 Core 1 | . . . 3 . Wheel 29 | . 28 28 29 31 Device 6 | . . . 9 11 Storage 11 | . 9 14 11 11 Processor 4 | . . . 7 11 Protection 6 | . 12 14 2 . Energy Gun 4 | . . . 4 17 Ballistic Gun 19 | . 28 28 17 3 Naked Turns . | . . . . . Heaviest Build 55 | 8 51 50 53 55 Greatest Support 38 | 26 26 26 38 36 Greatest Overweight (x) 3 | 1 1 1 2 3 Average Overweight (x) . | . . 1 1 1 Largest Inventory Capacity 20 | 5 20 20 20 20 Average Capacity 19 | 5 14 20 20 20 Most Carried 20 | 2 11 15 20 20 Average Carried 15 | 1 6 12 17 19 Final Capacity 20 | 5 20 20 20 20 Final Carried 20 | 2 11 15 20 20 Class Distribution -------------------- 81% | Mutant 18% | Scavenger-Mutant Dominant Class ---------------- Mutant | -10/Materials Mutant | -10/Mines Mutant | -9/Materials Scavenger-Mutant | -9/Mines Resources | -11 -10 -10 -9 -9 ----------- Run | Scr Mat Min Mat Min Matter Collected 918 | 243 57 76 473 69 Remotely . | . . . . . Salvage Created 1659 | . 129 38 1331 161 Parts 98 | . 4 4 84 6 Haulers Intercepted 3 | . 1 . 2 . Recyclers Shooed 4 | . . . 3 1 Parts Field Recycled . | . . . . . Retrieved Matter . | . . . . . Parts Self-Destructed . | . . . . . Prevented . | . . . . . Kills | -11 -10 -10 -9 -9 ------- Run | Scr Mat Min Mat Min Combat Hostiles Destroyed 34 | . 2 3 25 4 Guns 34 | . 2 3 25 4 Classes Destroyed 10 | . 2 1 6 1 Worker 2 | . . . 2 . Builder 2 | . . . 2 . Hauler 3 | . 1 . 2 . Recycler 3 | . . . 3 . Watcher 1 | . . . 1 . Swarmer 10 | . . 3 7 . Grunt 16 | . 2 . 11 3 Duelist 2 | . . . 2 . Sentry 5 | . . . 5 . Assembled 1 | . . . . 1 Best Kill Streak 5 | . 2 3 5 3 Combat Bots Only 4 | . 2 3 4 3 Max Kills in Single Turn 1 | . 1 1 1 1 Gunslinging . | . . . . . Exploded . | . . . . . Melee . | . . . . . Uniques/NPCs Destroyed . | . . . . . Combat | -11 -10 -10 -9 -9 -------- Run | Scr Mat Min Mat Min Damage Taken 2442 | . 102 102 1343 895 Core 452 | . 41 8 182 221 Absorbed by Shields . | . . . . . Regen/Repaired (Parts) 11 | . . . 11 . Core Remaining (%) 90 | 100 . 80 . . Volleys Fired 147 | . 14 9 108 16 Largest 2 | . 2 2 2 2 Hottest 130 | . 40 40 85 130 Shots Fired 275 | . 28 18 199 30 Gun 275 | . 28 18 199 30 Cannon . | . . . . . Launcher . | . . . . . Special . | . . . . . Kinetic 216 | . 28 18 156 14 Thermal 59 | . . . 43 16 Explosive . | . . . . . Electromagnetic . | . . . . . Robot Hit Streak 16 | . 11 8 16 7 Robot Miss Streak 4 | . 2 2 4 3 Penetration Max . | . . . . . Secondary Targets 3 | . . 1 2 . Max Gunslinging Chain 1 | . . 1 1 . Shots Hit Robots 189 | . 22 12 134 21 Core Hits 85 | . 7 5 64 9 Critical Kills 1 | . . . 1 . Critical Parts Destroyed 2 | . . . 2 . Critical Strikes 5 | . . . 4 1 Burn 2 | . . . 1 1 Destroy 3 | . . . 3 . Melee Attacks . | . . . . . Impact . | . . . . . Slashing . | . . . . . Piercing . | . . . . . Sneak Attacks . | . . . . . Combat Hostiles . | . . . . . Follow-up Attacks . | . . . . . Damage Inflicted 2031 | . 197 93 1499 242 Guns 2031 | . 197 93 1499 242 Cannons . | . . . . . Explosions . | . . . . . Melee . | . . . . . Ramming . | . . . . . Kinetic 1568 | . 197 93 1178 100 Thermal 463 | . . . 321 142 Explosive . | . . . . . Electromagnetic . | . . . . . Impact . | . . . . . Slashing . | . . . . . Piercing . | . . . . . Highest Corruption . | . . . . . Average Corruption . | . . . . . Corruption Purged . | . . . . . Corruption Blocked . | . . . . . Overload Shots . | . . . . . Overflow Damage . | . . . . . Projectiles . | . . . . . Explosions . | . . . . . Melee . | . . . . . Knockbacks . | . . . . . Impact . | . . . . . Kinetic . | . . . . . Secondary . | . . . . . Self-Inflicted Damage . | . . . . . Shots . | . . . . . Rammed . | . . . . . Targets Rammed . | . . . . . Kicked . | . . . . . Crushed . | . . . . . Highest Temperature 416 | . 45 12 416 306 Average Temperature 76 | . 15 6 77 125 Received Heat Transfer 780 | . 60 . 438 282 Effects 1 | . . . 1 . Shutdowns 1 | . . . 1 . Siege Activations . | . . . . . Robots Corrupted . | . . . . . Combat Hostiles . | . . . . . Parts Fried . | . . . . . Impact Corruptions . | . . . . . Robots Melted . | . . . . . Combat Hostiles . | . . . . . Parts Melted 3 | . . . 3 . Heat Transferred 1369 | . . . 925 444 Parts Sabotaged . | . . . . . Parts Stolen . | . . . . . Parts Stripped . | . . . . . Power Chain Reactions . | . . . . . Missiles Intercepted . | . . . . . Alert | -11 -10 -10 -9 -9 ------- Run | Scr Mat Min Mat Min Peak Influence 481 | . 98 122 481 218 Initial 143 | . . 37 . 143 Average 132 | . 64 74 163 205 Maximum Alert Level 2 | . . . 2 1 Low Security (%) 79 | 100 100 100 77 20 Level 1 16 | . . . 14 79 Level 2 4 | . . . 8 . Level 3 . | . . . . . Level 4 . | . . . . . Level 5 . | . . . . . High Security . | . . . . . Max Security . | . . . . . Squads Dispatched 4 | . 1 . 3 . Investigation 1 | . . . 1 . Extermination . | . . . . . Reinforcement 3 | . 1 . 2 . Assault . | . . . . . Garrison . | . . . . . Intercept . | . . . . . Searches Triggered . | . . . . . Construction Impeded . | . . . . . Haulers Reinforced . | . . . . . Active Scanning Responses . | . . . . . Cargo Convoy Interrupts . | . . . . . Stealth | -11 -10 -10 -9 -9 --------- Run | Scr Mat Min Mat Min Distress Signals 5 | . . . 5 . Communications Jammed . | . . . . . Distress Signals . | . . . . . Times Spotted 57 | . 4 3 39 11 Peak Tracking Total 5 | . 2 3 5 5 Tactical Retreats 4 | . . . 4 . Traps | -11 -10 -10 -9 -9 ------- Run | Scr Mat Min Mat Min Traps Triggered 3 | . 1 . 2 . Indirectly . | . . . . . Trap Hack Attempts . | . . . . . Triggered . | . . . . . Disarmed . | . . . . . Reprogrammed . | . . . . . Reused . | . . . . . Traps Extracted . | . . . . . Installed . | . . . . . Triggered . | . . . . . Machines | -11 -10 -10 -9 -9 ---------- Run | Scr Mat Min Mat Min Machines Disabled 1 | . . . . 1 Max in Single Turn 1 | . . . . 1 Machines Sabotaged . | . . . . . Garrisons Compromised . | . . . . . Overloaded Fab Kills . | . . . . . Hacking | -11 -10 -10 -9 -9 --------- Run | Scr Mat Min Mat Min Machines Accessed 10 | . 3 1 6 . Terminals 7 | . 3 . 4 . Fabricators . | . . . . . Repair Stations 1 | . . . 1 . Recycling Units . | . . . . . Scanalyzers 1 | . . . 1 . Garrison Access . | . . . . . Total Hacks 26 | . 9 1 16 . Successful 20 | . 6 1 13 . Failed 6 | . 3 . 3 . Catastrophic 1 | . 1 . . . Database Lockouts . | . . . . . Manual 13 | . 8 . 5 . Terminals 19 | . 9 . 10 . Fabricators . | . . . . . Repair Stations 2 | . . . 2 . Recycling Units . | . . . . . Scanalyzers 4 | . . . 4 . Garrison Access . | . . . . . Terminal Hacks 9 | . 3 1 5 . Record 2 | . . . 2 . Open Door 1 | . . 1 . . Level Access Points 2 | . 1 . 1 . Branch Access Points 2 | . 1 . 1 . Hauler Manifests 1 | . . . 1 . Zone Layout 1 | . 1 . . . Fabricator Hacks . | . . . . . Repair Station Hacks 2 | . . . 2 . Scan Component 1 | . . . 1 . Repair 1 | . . . 1 . Recycling Unit Hacks . | . . . . . Scanalyzer 4 | . . . 4 . Insert Component 2 | . . . 2 . Analyze 2 | . . . 2 . Garrison Access Hacks . | . . . . . Unauthorized Hacks 5 | . 3 . 2 . Terminals 5 | . 3 . 2 . Botnet 5 | . 3 . 2 . Fabricators . | . . . . . Repair Stations . | . . . . . Recycling Units . | . . . . . Scanalyzers . | . . . . . Garrison Access . | . . . . . Data Cores Recovered . | . . . . . Used . | . . . . . Hacking Detections 7 | . 2 . 5 . Full Trace Events . | . . . . . Feedback Events . | . . . . . Feedback Blocked . | . . . . . Robot Schematics Acquired . | . . . . . Robots Built . | . . . . . Authchips . | . . . . . Time . | . . . . . Total Robot Build Rating . | . . . . . Part Schematics Acquired 2 | . . . 2 . Parts Built . | . . . . . Authchips . | . . . . . Time . | . . . . . Total Part Build Rating . | . . . . . Parts Repaired 1 | . . . 1 . Time 108 | . . . 108 . Parts Recycled . | . . . . . Recycled Matter . | . . . . . Retrieved Matter . | . . . . . Retrieved Components . | . . . . . Parts Scanalyzed 2 | . . . 2 . Part Schematics Acquired 2 | . . . 2 . Parts Damaged 1 | . . . 1 . Bothacking | -11 -10 -10 -9 -9 ------------ Run | Scr Mat Min Mat Min Used RIF Installer . | . . . . . Robots Hacked . | . . . . . Non-combat . | . . . . . Combat . | . . . . . Robot Hacks Applied . | . . . . . Relay Couplers Released . | . . . . . Fabnet Peak Effective % . | . . . . . Robots Rewired . | . . . . . Allies Hacked . | . . . . . Hacks Repelled . | . . . . . Allies | -11 -10 -10 -9 -9 -------- Run | Scr Mat Min Mat Min Total Allies . | . . . . . Largest Group . | . . . . . Highest-Rated Group . | . . . . . Highest-Rated Ally . | . . . . . Total Orders . | . . . . . Ally Attacks . | . . . . . Total Damage . | . . . . . Kills . | . . . . . Allies Corrupted . | . . . . . Allies Melted . | . . . . . Intel | -11 -10 -10 -9 -9 ------- Run | Scr Mat Min Mat Min Robot Analysis Total . | . . . . . Derelict Logs Recovered 2 | . . 1 . 1 Drone Launches . | . . . . . Drone Recoveries . | . . . . . Exploration | -11 -10 -10 -9 -9 ------------- Run | Scr Mat Min Mat Min Turns Passed 2381 | 42 269 584 1213 273 Spaces Moved 1621 | 36 210 503 669 203 Core 9 | 9 . . . . Treads . | . . . . . Legs . | . . . . . Wheels 1612 | 27 210 503 669 203 Hover . | . . . . . Flight . | . . . . . Fastest Speed 50 | 50 90 105 105 105 Average Speed 104 | 88 99 105 105 106 Slowest Speed 135 | 100 105 105 120 135 Overloaded Moves . | . . . . . Propulsion Burnouts . | . . . . . Robots Hopped . | . . . . . Cave-ins Triggered . | . . . . . Exploration Rate (%) 47 | 4 42 89 56 45 Regions Visited 4 Branch Regions 2 Pre-discovered Areas . | . . . . . Known Exits Taken 3 | . 1 1 1 . Unknown Exits Taken 1 | 1 . . . . Scrap Searched 2 | . . 1 . 1 Spaces Dug . | . . . . . Terrain Destroyed . | . . . . . Melee . | . . . . . Projectile . | . . . . . AOE . | . . . . . Terrain Rammed . | . . . . . Walls Destroyed . | . . . . . Machines Disabled . | . . . . . Actions | -11 -10 -10 -9 -9 --------- Run | Scr Mat Min Mat Min Total 2073 | 43 245 544 1008 233 Wait 198 | . 11 23 162 2 Move 1617 | 35 209 502 668 203 Hop . | . . . . . Pick Up 41 | 2 8 4 25 2 Fast Attach 15 | 5 2 . 5 3 Attach 12 | . . . 11 1 Detach . | . . . . . Swap 16 | 1 1 3 9 2 Drop 27 | . . 3 20 4 Fire 147 | . 14 9 108 16 Melee . | . . . . . Ram . | . . . . . Kick . | . . . . . Crush . | . . . . . Escape Stasis . | . . . . . Rewire . | . . . . . Trap . | . . . . . Miscellaneous . | . . . . . Route ------- -11/Scrapyard -10/Materials (discovered 4 exits: Mat x3 / *Min) -10/Mines (discovered 2 exits: *Mat x2) -9/Materials (discovered 5 exits: Mat x3 / *Min x2) -9/Mines History --------- Turn | Location | Event 27 | -11/Scrapyard | Discovered new exit (range 15) 43 | -11/Scrapyard | Entered Materials 119 | -10/Materials | Identified exit to Mines 119 | -10/Materials | Identified exit to Materials 308 | -10/Materials | Build established: Mutant 312 | -10/Materials | Entered Mines 528 | -10/Mines | Discovered exit to Materials (range 6) 594 | -10/Mines | Found a damaged Exp. Sensor Array with a note attached 596 | -10/Mines | Found Prototype Device 716 | -10/Mines | Received a Rocket Launcher from a helpful Derelict 799 | -10/Mines | Discovered exit to Materials (range 6) 810 | -10/Mines | Found the Drone Emporium 815 | -10/Mines | Found Prototype Device 896 | -10/Mines | Entered Materials 896 | -9/Materials | Evolved 2 slots: Propulsion x1, Utility x1 896 | -9/Materials | Identified Thief Drone Bay 898 | -9/Materials | Identified Exp. Sensor Array 1045 | -9/Materials | Repaired Faulty Exp. Sensor Array 1372 | -9/Materials | Lost 3 parts (1n2w) 1831 | -9/Materials | Identified exit to Materials 1961 | -9/Materials | Identified exit to Mines 2109 | -9/Materials | Entered Mines 2116 | -9/Mines | Core integrity fell below 50% 2275 | -9/Mines | Learned location of 1 exit from Materials 2345 | -9/Mines | Assembled infested the area 2380 | -9/Mines | Core integrity fell below 20% 2382 | -9/Mines | Destroyed by D-53 Grenadier with Mini Grenade Launcher Last Messages --------------- 02230_ Found 19 Matter. 02231_ Acquired 7 matter. 02275_ Acquired derelict log, extracted data. Data stored: Materials exits (x1). 02287_ K-01 Serf collects debris. 02345_ ALERT: Infestation in the mines, dispatching Demolisher response squad. 02349_ K-01 Serf collects debris. 02350_ D-53 Grenadier unfolds itself. 02350_ K-01 Serf collects debris. 02365_ as-40177 destroyed. 02365_ U-05 Engineer destroyed. 02368_ as-43472 destroyed. 02370_ The unstable cave ceiling collapses. 02372_ Arm. Wheel destroyed. 02373_ Particle Gun destroyed. 02373_ Hvy. Ion Engine destroyed. 02376_ Particle Gun destroyed. 02379_ Arm. Wheel destroyed. 02382_ The unstable cave ceiling collapses. Map ----- +----------------------------------------------------+ | ?????????????????????????????????????????????????? | | ?????????????????????????????????????????????????? | | ?????????????????????????????????????????????????? | | ?????????????????????????????????????????????????? | | ?????????????????????????????????????????????????? | | ?????????????????????????????????????????????????? | | ?????????????????????????????????????????????????? | | ?????????????????????????????????????????????????? | | ?????????????????????????????????????????????????? | | ?????????????????????????????????????????????????? | | ?????????????????????????????????????????????????? | | ?????????????????????????????????????????????????? | | ????????????????????????#####????????????????????? | | ????????????????????????#####????????????????????? | | ????????????????????????# ????????????????????? | | ????????????????????????? ????????????????????? | | ???????????????????????## ##????????????????????? | | ???????????????????????## ##?????????????????? ? | | ???????????????????????## ##?????????????????? ? | | ???????????????????????## ##?????????????????? ? | | ???????????????????????## ##?????????????????? # | | ???????????????????????## ##?????????????????? # | | ????????????????????##### ####??????????####?? | | ????????????####????##### ####?????????#####??? | | ???????????######???## ###????????## ??? | | ???????????## ####### @ ###????????## ##??? | | ??????????? ###### ##????????## ##??? | | ??????????? ## ###????????## ##??? | | ???????? ? # #######???## ##??# | | ???????? %???## * #########??## ##??## | | ???????? #### % #### ###??## ##??## | | ????????? ### ## ###### ###### | | ???????? ###### ###### | | ??????? ##d | | ????????? # d ############# | | ????????? # ############## | | ????## ?????? ## ####?########## | | ???### ? ###### ###??##!! | | ??? ###### # ##???##%####### | | ??# #### ###???##!####### | | ### #### ####???## ##???## | | ## ####### ## ####????## ##???## | | %? # ####### ########## ##???### | | ?????????????## ########## ##???### | | ?????????????## ##### #### ##?????? | | ?????????????### ## ###### ##?????? | | ?????????????######## ####### ##### ?????? | | ??????????????######## ###?### ##### ?????? | | ???????????????????#### ##### ###????????? | | ????????????????????#### #### """ ##????????? | +----------------------------------------------------+ Best States ------------- Heat Dissipation 28 Energy Generation 14 Energy Capacity 280 Matter Stores 300 Matter Capacity 300 Sight Range 16 Terrain Scan Density 10 Armor Coverage 150 Evasion (%) 42 Item Schematics ----------------- Flight Unit | -9/Materials | Scanalyzed Lgt. Ion Engine | -9/Materials | Scanalyzed Robot Schematics ------------------ None Fabricated ------------ Nothing Alien Tech Used ----------------- None Achievements -------------- Shopping List root@ Challenges ------------ None Game ------ Seed SigixMobileBrace Manual? 0 Play Time 00:24:51 Cumulative 1.8 hours Start 2022.03.30 @ 18:04:08 End 2022.03.30 @ 18:26:37 Sessions 1 Manual Loads 0 Difficulty Rogue Special Mode None Game No. 10 Rogue 10 Adventurer 0 Explorer 0 Win Type - Total 0 Types 0/0/0/0/0/0/0/0/0 Lore% 4 Gallery% 6 Achievement% 10 Wizard Run 0 Options --------- ASCII 0 Keyboard 0 Movement Numpad Keybinds 0 Fullscreen 2 Font 18/X11Bold Map View 76x50 Tactical HUD 1 Map Filters NONE Filters NONE Steam 1 RUN: ae696c8b-6f99-4e9c-b033-0b02d2c74369